lending/lending_fUSD_20250815
["ID","MTS","AMOUNT","RATE_DAILY","PERIOD"]
[379242244,1755217844683,-2606.66,0.00024859,2]
[379242245,1755217844693,-2000.0,0.00024859,2]
[379242246,1755217844703,-2000.0,0.00024859,2]
[379242247,1755217844712,-2000.0,0.00024859,2]
[379242248,1755217844722,-2000.0,0.00024859,2]
[379242249,1755217844731,-2000.0,0.00024859,2]
[379242250,1755217844741,-2000.0,0.00024859,2]
[379242251,1755217844751,-2000.0,0.00024859,2]
[379242252,1755217844761,-2000.0,0.00024859,2]
[379242253,1755217844770,-2000.0,0.00024859,2]
[379242254,1755217844780,-400.0,0.00024859,2]
[379242255,1755217844789,-2000.0,0.00024859,2]
[379242256,1755217844799,-2000.0,0.00024859,2]
[379242257,1755217844810,-2000.0,0.00024859,2]
[379242258,1755217844822,-914.87663309,0.00024859,2]
[379242259,1755217844831,-2786.0,0.00024859,2]
[379242260,1755217844842,-4215.0,0.00024859,2]
[379242261,1755217844851,-2925.96,0.00024859,2]
[379242262,1755217844863,-400.0,0.00024859,2]
[379242263,1755217844873,-1022.98,0.00024859,2]
[379242264,1755217844885,-3510.73,0.00024859,2]
[379242265,1755217844895,-2742.2,0.00024859,2]
[379242266,1755217844906,-5851.47,0.00024859,2]
[379242267,1755217844915,-400.0,0.00024859,2]
[379242268,1755217844925,-2410.4,0.00024859,2]
[379242269,1755217844934,-767.28,0.00024859,2]
[379242270,1755217844944,-400.0,0.00024859,2]
[379242271,1755217844954,-5987.76,0.00024859,2]
[379242272,1755217844963,-2620.98,0.00024859,2]
[379242273,1755217844974,-400.0,0.00024859,2]
[379242274,1755217844984,-400.0,0.00024859,2]
[379242275,1755217844994,-1130.38,0.00024859,2]
[379242276,1755217845004,-3105.92,0.00024859,2]
[379242277,1755217845314,-7839.71,0.00024859,2]
[379242278,1755217845324,-4864.68,0.00024859,2]
[379242279,1755217845334,-640.53,0.00024859,2]
[379242280,1755217845344,-400.0,0.00024859,2]
[379242281,1755217845353,-4939.99,0.00024859,2]
[379242282,1755217845363,-400.0,0.00024859,2]
[379242283,1755217845373,-6556.76,0.00024859,2]
[379242284,1755217845383,-400.0,0.00024859,2]
[379242285,1755217845394,-3884.18,0.00024859,2]
[379242286,1755217845403,-400.0,0.00024859,2]
[379242287,1755217845413,-5025.03,0.00024859,2]
[379242288,1755217845422,-3729.8,0.00024859,2]
[379242289,1755217845431,-400.0,0.00024859,2]
[379242290,1755217845441,-400.0,0.00024859,2]
[379242291,1755217845451,-400.0,0.00024859,2]
[379242292,1755217845460,-2857.53,0.00024859,2]
[379242293,1755217845471,-12511.84,0.00024859,2]
[379242294,1755217845480,-400.0,0.00024859,2]
[379242295,1755217845490,-938.87,0.00024859,2]
[379242296,1755217845499,-400.0,0.00024859,2]
[379242297,1755217845514,-400.0,0.00024859,2]
[379242298,1755217845524,-400.0,0.00024859,2]
[379242299,1755217845534,-400.0,0.00024859,2]
[379242300,1755217845544,-400.0,0.00024859,2]
[379242301,1755217845554,-400.0,0.00024859,2]
[379242302,1755217845564,-400.0,0.00024859,2]
[379242303,1755217845574,-400.0,0.00024859,2]
[379242304,1755217845584,-14511.57,0.00024859,2]
[379242305,1755217845594,-6091.68,0.00024859,2]
[379242306,1755217845604,-4293.26,0.00024859,2]
[379242307,1755217845614,-5666.18,0.00024859,2]
[379242308,1755217845624,-400.0,0.00024859,2]
[379242309,1755217845634,-400.0,0.00024859,2]
[379242310,1755217845644,-3047.24,0.00024859,2]
[379242311,1755217845655,-400.0,0.00024859,2]
[379242312,1755217845667,-13379.11,0.00024859,2]
[379242313,1755217845678,-4941.6,0.00024859,2]
[379242314,1755217845690,-400.0,0.00024859,2]
[379242315,1755217845700,-903.59,0.00024859,2]
[379242316,1755217845710,-431.25305855,0.00024859,2]
[379242317,1755217845721,-400.0,0.00024859,2]
[379242318,1755217845731,-2820.21,0.00024859,2]
[379242319,1755217845742,-400.0,0.00024859,2]
[379242320,1755217845752,-3794.44,0.00024859,2]
[379242321,1755217845764,-934.76,0.00024859,2]
[379242322,1755217845777,-400.0,0.00024859,2]
[379242323,1755217845789,-8948.0,0.00024859,2]
[379242324,1755217845800,-400.0,0.00024859,2]
[379242325,1755217845812,-1941.67,0.00024859,2]
[379242326,1755217845823,-745.78,0.00024859,2]
[379242327,1755217845833,-2000.65,0.00024859,2]
[379242328,1755217845843,-400.0,0.00024859,2]
[379242329,1755217845854,-6109.72,0.00024859,2]
[379242330,1755217845864,-400.0,0.00024859,2]
[379242331,1755217845874,-400.0,0.00024859,2]
[379242332,1755217845888,-400.0,0.00024859,2]
[379242333,1755217845898,-6641.1,0.00024859,2]
[379242334,1755217845909,-400.0,0.00024859,2]
[379242335,1755217845919,-7789.41,0.00024859,2]
[379242336,1755217845930,-400.0,0.00024859,2]
[379242337,1755217845940,-3941.23,0.00024859,2]
[379242338,1755217845950,-6866.24,0.00024859,2]
[379242339,1755217845960,-400.0,0.00024859,2]
[379242340,1755217845970,-400.0,0.00024859,2]
[379242341,1755217845980,-400.0,0.00024859,2]
[379242342,1755217845991,-3441.06,0.00024859,2]
[379242343,1755217846000,-400.0,0.00024859,2]
[379242344,1755217846012,-3544.7,0.00024859,2]
[379242345,1755217846022,-4041.32,0.00024859,2]
[379242346,1755217846032,-400.0,0.00024859,2]
[379242347,1755217846042,-2756.66,0.00024859,2]
[379242348,1755217846052,-6127.05,0.00024859,2]
[379242349,1755217846062,-400.0,0.00024859,2]
[379242350,1755217846072,-400.0,0.00024859,2]
[379242351,1755217846082,-10850.24,0.00024859,2]
[379242352,1755217846092,-3789.49,0.00024859,2]
[379242353,1755217846102,-400.0,0.00024859,2]
[379242354,1755217846112,-400.0,0.00024859,2]
[379242355,1755217846122,-3155.89,0.00024859,2]
[379242356,1755217846133,-5920.13,0.00024859,2]
[379242357,1755217846143,-5920.13,0.00024859,2]
[379242358,1755217846153,-12178.65,0.00024859,2]
[379242359,1755217846163,-418.74,0.00024859,2]
[379242360,1755217846173,-400.0,0.00024859,2]
[379242361,1755217846183,-11883.18,0.00024859,2]
[379242362,1755217846193,-3285.83,0.00024859,2]
[379242363,1755217846203,-3483.56,0.00024859,2]
[379242364,1755217846212,-6123.1,0.00024859,2]
[379242365,1755217846222,-12028.83,0.00024859,2]
[379242366,1755217846233,-400.0,0.00024859,2]
[379242367,1755217846243,-801.22,0.00024859,2]
[379242368,1755217846253,-400.0,0.00024859,2]
[379242369,1755217846264,-87866.6995797,0.0002486,2]
[379242370,1755217846274,-173.1460679,0.0002486,2]
[379242371,1755217846284,-173.146068,0.0002486,2]
[379242372,1755217846294,-389.5786527,0.0002486,2]
[379242373,1755217846304,-244.0,0.0002486,2]
[379242374,1755217846314,-151.0,0.0002486,7]
[379242375,1755217846324,-151.0,0.0002486,7]
[379242376,1755217846335,-151.0,0.0002486,7]
[379242377,1755217846345,-381.492538,0.0002486,7]
[379242378,1755217846357,-381.492538,0.0002486,7]
[379242379,1755217846367,-134460.5103262,0.0002486,2]
[379242380,1755217846377,-115241.10026027,0.0002486,2]
[379242381,1755217846397,-568.65172732,0.0002486,2]
[379242382,1755217848263,-276.51448846,0.00022536,2]
[379242383,1755217848273,-99.06968667,0.00024659,2]
[379242384,1755217851987,-1052.66877138,0.00024659,2]
[379242385,1755217852094,-646.80275086,0.00024659,2]
[379242386,1755217852559,-182.03867769,0.00024659,2]
[379242387,1755217853046,-901.77806876,0.00024659,2]
[379242389,1755217988005,820.8388077,0.0003013,120]
[379242390,1755217998960,291.1061399,0.0003013,120]
[379242391,1755218029895,1536.0,0.0003013,120]
[379242392,1755218082834,399.0,0.0003013,120]
[379242394,1755218230680,157.82,0.00013699,2]
[379242395,1755218239715,152.0,0.00025904,30]
[379242399,1755218690549,2000.0,0.00030136,120]
[379242400,1755218709466,20000.0,0.00030136,120]
[379242401,1755218730549,703.0,0.00027137,120]
[379242402,1755218730847,703.0,0.00027671,120]
[379242403,1755218754258,20000.0,0.00030136,120]
[379242405,1755218853934,2053.53,0.00030137,120]
[379242406,1755218860436,2831.73,0.00030137,120]
[379242407,1755218883662,3370.19345822,0.00030137,120]
[379242422,1755218963759,157.0,0.000301,120]
[379242423,1755218964979,157.0,0.000301,120]
[379242424,1755218965490,157.0,0.000301,120]
[379242425,1755218965964,157.0,0.000301,120]
[379242426,1755218971772,157.0,0.000301,120]
[379242427,1755218972022,157.0,0.000301,120]
[379242429,1755218985485,157.0,0.000301,120]
[379242430,1755218996962,157.0,0.000301,120]
[379242431,1755219005812,157.0,0.000301,120]
[379242432,1755219006616,157.0,0.000301,120]
[379242439,1755219032544,-300.0,0.00022388,2]
[379242440,1755219032554,-50.0,0.00022388,2]
[379242441,1755219033133,-250.0,0.00022388,2]
[379242442,1755219033145,-449.0,0.00022388,2]
[379242443,1755219033155,-150.0,0.00022389,2]
[379242444,1755219033165,-150.0,0.00022389,2]
[379242445,1755219033174,-150.0,0.00022389,2]
[379242446,1755219033186,-150.0,0.00022389,2]
[379242447,1755219033196,-150.0,0.00022389,2]
[379242448,1755219033207,-150.0,0.00022389,2]
[379242449,1755219033218,-150.0,0.00022389,2]
[379242450,1755219033228,-150.0,0.00022389,2]
[379242451,1755219033238,-150.0,0.00022389,2]
[379242452,1755219033248,-150.0,0.00022389,2]
[379242453,1755219033258,-150.0,0.00022389,2]
[379242454,1755219033267,-150.0,0.00022389,2]
[379242455,1755219033278,-150.0,0.00022389,2]
[379242456,1755219033288,-150.0,0.00022389,2]
[379242457,1755219033298,-300.0,0.00022429,2]
[379242458,1755219033310,-465.47902094,0.00022429,2]
[379242459,1755219033322,-34.52097906,0.00022429,2]
[379242460,1755219033333,-1000.0,0.00022429,2]
[379242461,1755219033346,-150.0,0.0002258,4]
[379242462,1755219033356,-250.0,0.0002261,2]
[379242463,1755219033366,-150.43,0.00022618,2]
[379242464,1755219033375,-150.29,0.00022618,2]
[379242465,1755219033386,-152.09,0.00022618,2]
[379242466,1755219033396,-150.0,0.00022772,4]
[379242467,1755219033405,-1000.0,0.00022796,2]
[379242468,1755219033415,-387.53870803,0.00022814,2]
[379242469,1755219033425,-168.87,0.00022818,2]
[379242470,1755219033434,-59.70122781,0.00022855,3]
[379242471,1755219033446,-92.29877219,0.00022855,3]
[379242472,1755219033456,-170.0,0.00022869,7]
[379242473,1755219033466,-150.0,0.00022887,4]
[379242474,1755219033476,-150.0,0.00022963,4]
[379242475,1755219033486,-152.0,0.00022968,4]
[379242476,1755219033496,-152.0,0.00023081,5]
[379242477,1755219033505,-159.88,0.00023109,2]
[379242478,1755219033514,-159.88,0.00023128,2]
[379242479,1755219033524,-159.88,0.00023148,2]
[379242480,1755219033533,-150.0,0.00023154,4]
[379242481,1755219033543,-159.88,0.00023167,2]
[379242482,1755219033552,-159.88,0.00023186,2]
[379242483,1755219033561,-152.0,0.00023194,6]
[379242484,1755219033575,-159.88,0.00023205,2]
[379242485,1755219033585,-159.88,0.00023225,2]
[379242486,1755219033594,-159.88,0.00023244,2]
[379242487,1755219033604,-159.88,0.00023263,2]
[379242488,1755219033614,-182.9,0.00023282,2]
[379242489,1755219033623,-159.88,0.00023282,2]
[379242490,1755219033633,-159.88,0.00023302,2]
[379242491,1755219033643,-152.0,0.00023307,7]
[379242492,1755219033652,-159.88,0.00023321,2]
[379242493,1755219033662,-159.88,0.0002334,2]
[379242494,1755219033672,-164.34,0.0002334,2]
[379242495,1755219033682,-150.0,0.00023346,4]
[379242496,1755219033692,-150.0,0.00023384,4]
[379242497,1755219033703,-150.0,0.00023388,2]
[379242498,1755219033713,-346.25380708,0.00023398,2]
[379242499,1755219033723,-34.02123073,0.000234,2]
[379242500,1755219033736,-731.03756705,0.000234,2]
[379242501,1755219033968,-371.94120222,0.000234,2]
[379242502,1755219033978,-933.3,0.00023411,2]
[379242503,1755219033989,-152.0,0.0002342,8]
[379242504,1755219033999,-152.0,0.00023532,9]
[379242505,1755219034009,-150.0,0.00023537,4]
[379242506,1755219034019,-169.48,0.00023575,2]
[379242507,1755219034029,-150.0,0.00023633,4]
[379242508,1755219034039,-150.0,0.00023633,4]
[379242509,1755219034049,-150.0,0.00023633,4]
[379242510,1755219034059,-150.0,0.00023633,4]
[379242511,1755219034068,-150.0,0.00023633,4]
[379242512,1755219034078,-150.0,0.00023633,4]
[379242513,1755219034088,-150.0,0.00023633,4]
[379242514,1755219034099,-150.0,0.00023633,4]
[379242515,1755219034108,-152.0,0.00023645,10]
[379242516,1755219034118,-153.11,0.00023726,2]
[379242517,1755219034136,-150.0,0.00023729,4]
[379242518,1755219034152,-152.0,0.00023758,11]
[379242519,1755219034162,-150.0,0.00023809,2]
[379242520,1755219034172,-152.0,0.00023871,12]
[379242521,1755219034183,-4042.09,0.00023879,2]
[379242522,1755219034192,-150.0,0.00023882,4]
[379242523,1755219034203,-150.0,0.0002392,4]
[379242524,1755219034213,-150.0,0.00023968,2]
[379242525,1755219034223,-157.82,0.00023973,2]
[379242526,1755219034233,-150.0,0.00023981,2]
[379242527,1755219034243,-152.0,0.00023984,13]
[379242528,1755219034253,-150.0,0.00023998,2]
[379242529,1755219034263,-150.0,0.00024029,2]
[379242530,1755219034272,-797.99,0.00024041,2]
[379242531,1755219034282,-152.0,0.00024097,14]
[379242532,1755219034292,-157.0,0.00024108,3]
[379242533,1755219034302,-150.0,0.00024111,4]
[379242534,1755219034311,-150.0,0.00024125,2]
[379242535,1755219034326,-152.0,0.0002421,15]
[379242536,1755219034337,-150.0,0.00024242,2]
[379242537,1755219034347,-150.0,0.00024247,2]
[379242538,1755219034357,-150.0,0.00024256,2]
[379242539,1755219034367,-150.0,0.00024271,2]
[379242540,1755219034377,-1417.0,0.000243,2]
[379242541,1755219034388,-150.0,0.00024303,4]
[379242542,1755219034398,-150.0,0.00024307,2]
[379242543,1755219034408,-420.0,0.00024319,2]
[379242544,1755219034419,-152.0,0.00024323,16]
[379242545,1755219034429,-184.3429923,0.00024355,2]
[379242546,1755219034439,-150.0,0.00024356,2]
[379242547,1755219034451,-150.0,0.00024367,2]
[379242548,1755219034461,-150.0,0.00024379,4]
[379242549,1755219034470,-150.0,0.00024391,2]
[379242550,1755219034480,-1024.0,0.00024394,2]
[379242551,1755219034490,-4549.12507298,0.000244,2]
[379242552,1755219034500,-162.90358747,0.000244,2]
[379242553,1755219034511,-542.55891872,0.000244,4]
[379242554,1755219034521,-150.0,0.00024418,2]
[379242555,1755219034532,-1000.0,0.00024419,2]
[379242556,1755219034542,-2851.77676522,0.0002442,2]
[379242557,1755219034553,-160.0,0.0002442,2]
[379242558,1755219034563,-300.0,0.0002442,2]
[379242559,1755219034574,-500.0,0.0002442,2]
[379242560,1755219034584,-2500.0,0.0002442,2]
[379242561,1755219034594,-2202.2017671,0.0002442,2]
[379242562,1755219034608,-797.7982329,0.0002442,2]
[379242563,1755219034618,-328.62288972,0.0002442,2]
[379242564,1755219034630,-2067.04199989,0.0002442,2]
[379242565,1755219034642,-104.33511039,0.0002442,2]
[379242566,1755219034652,-685.62070967,0.0002442,2]
[379242567,1755219034727,-263.263,0.0002442,2]
[379242605,1755219037565,-157.0,0.00024,5]
[379242606,1755219037575,-2051.11629033,0.0002442,2]
[379242607,1755219037584,-600.0,0.0002442,2]
[379242608,1755219037594,-3000.0,0.0002442,2]
[379242609,1755219037603,-1470.8400429,0.0002442,2]
[379242610,1755219037614,-485.78450157,0.0002442,2]
[379242611,1755219037625,-543.37545553,0.0002442,2]
[379242612,1755219037634,-2327.04580789,0.0002442,2]
[379242618,1755219038299,-157.0,0.00024,5]
[379242619,1755219038308,-355.31274187,0.0002442,2]
[379242620,1755219038344,-317.64145024,0.0002442,2]
[379242621,1755219038355,-2500.0,0.0002442,2]
[379242622,1755219038365,-2028.65694053,0.0002442,2]
[379242623,1755219038375,-2500.0,0.0002442,2]
[379242624,1755219038384,-632.22496088,0.0002442,2]
[379242625,1755219038396,-1867.77503912,0.0002442,2]
[379242626,1755219038407,-2500.0,0.0002442,2]
[379242627,1755219038416,-2500.0,0.0002442,2]
[379242628,1755219038426,-2500.0,0.0002442,2]
[379242629,1755219038436,-2500.0,0.0002442,2]
[379242630,1755219038445,-2460.92880703,0.0002442,2]
[379242631,1755219038461,-39.07119297,0.0002442,2]
[379242632,1755219038471,-250.0,0.0002442,2]
[379242633,1755219038482,-250.0,0.0002442,2]
[379242634,1755219038493,-250.0,0.0002442,2]
[379242635,1755219038503,-250.0,0.0002442,2]
[379242636,1755219038512,-373.93133996,0.0002442,2]
[379242637,1755219038522,-277.35679052,0.0002442,2]
[379242638,1755219038531,-151.0,0.0002442,2]
[379242639,1755219038540,-500.0,0.0002442,2]
[379242640,1755219038549,-500.0,0.0002442,2]
[379242641,1755219038561,-500.0,0.0002442,2]
[379242642,1755219038570,-500.0,0.0002442,2]
[379242643,1755219038580,-500.0,0.0002442,2]
[379242644,1755219038589,-500.0,0.0002442,2]
[379242645,1755219038598,-500.0,0.0002442,2]
[379242646,1755219038608,-500.0,0.0002442,2]
[379242647,1755219038619,-500.0,0.0002442,2]
[379242648,1755219038628,-500.0,0.0002442,2]
[379242649,1755219038638,-500.0,0.0002442,2]
[379242650,1755219038647,-150.0,0.00024421,2]
[379242651,1755219038656,-150.0,0.00024427,2]
[379242652,1755219038666,-152.0,0.00024436,17]
[379242653,1755219038675,-4549.12507296,0.0002444,2]
[379242654,1755219038685,-150.0,0.0002444,2]
[379242655,1755219038694,-182.9,0.00024446,2]
[379242656,1755219038703,-150.0,0.0002445,2]
[379242657,1755219038717,-150.0,0.00024462,2]
[379242658,1755219038726,-150.0,0.00024476,2]
[379242659,1755219038735,-333.67376993,0.00024477,2]
[379242660,1755219038745,-425.27049108,0.00024479,2]
[379242661,1755219038754,-4549.12507296,0.0002448,2]
[379242662,1755219038764,-516.86721224,0.0002448,2]
[379242663,1755219038773,-608.46393339,0.00024482,2]
[379242664,1755219038783,-700.06065455,0.00024484,2]
[379242665,1755219038792,-791.65737571,0.00024485,2]
[379242666,1755219038802,-883.25409686,0.00024487,2]
[379242667,1755219038811,-974.85081802,0.00024488,2]
[379242668,1755219038821,-1066.44753916,0.0002449,2]
[379242669,1755219038830,-207.47,0.00024492,2]
[379242670,1755219038840,-150.0,0.00024494,4]
[379242671,1755219038849,-207.46,0.00024494,2]
[379242672,1755219038859,-269.41666539,0.00024499,2]
[379242673,1755219038868,-73512.82618717,0.000245,2]
[379242674,1755219038885,-10466.84572514,0.000245,2]
[379242675,1755219038914,-3296.01226809,0.000245,2]
[379242684,1755219039901,-1893.77839438,0.000245,2]
[379242686,1755219039914,-13035.41968744,0.000245,2]
[379242689,1755219039927,-683.67868915,0.000245,2]
[379243038,1755219045591,-1000.0,0.00022755,2]
[379243039,1755219045601,-157.0,0.00024,5]
[379243040,1755219045611,-141.50371037,0.00024453,2]
[379243041,1755219045622,-417.95823573,0.00024453,2]
[379243042,1755219045653,-440.5380539,0.00024453,2]
[379243043,1755219045663,-1000.0,0.00024467,2]
[379243044,1755219045672,-500.0,0.00024499,2]
[379243045,1755219045682,-500.0,0.00024499,2]
[379243046,1755219045692,-500.0,0.00024499,2]
[379243047,1755219045707,-500.0,0.00024499,2]
[379243048,1755219045718,-500.0,0.00024499,2]
[379243049,1755219045727,-500.0,0.00024499,2]
[379243050,1755219045736,-204.02035863,0.00024499,2]
[379243051,1755219045745,-500.0,0.00024499,2]
[379243052,1755219045755,-356.35691579,0.00024499,2]
[379243053,1755219045764,-469.67504346,0.00024499,2]
[379243054,1755219045775,-12976.17023972,0.000245,2]
[379243055,1755219045795,-24438.10607033,0.000245,2]
[379243056,1755219045868,-544.14569313,0.000245,2]
[379243060,1755219046009,-4296.75088854,0.000245,2]
[379243061,1755219090791,307.78,0.00024685,30]
[379243062,1755219167450,383.0,0.00030137,120]
[379243063,1755219176688,157.0,0.000301,120]
[379243064,1755219179142,157.0,0.000301,120]
[379243065,1755219179653,157.0,0.000301,120]
[379243066,1755219180213,157.0,0.000301,120]
[379243068,1755219185583,157.0,0.000301,120]
[379243069,1755219187858,157.59,0.00013699,2]
[379243070,1755219210439,157.0,0.0002,2]
[379243071,1755219214426,157.0,0.0002,2]
[379243072,1755219477768,20000.0,0.00030136,120]
[379243073,1755219523948,156.77,0.0002,2]
[379243074,1755219756344,194.08,0.00019863,2]
[379243077,1755219952477,506.46541626,0.0003013,120]
[379243078,1755220019874,3600.0,0.00030137,120]
[379243086,1755220087025,282.13,0.00024685,30]
[379243088,1755220134135,158.41,0.00013699,2]
[379243093,1755220231871,-300.0,0.00021281,2]
[379243094,1755220231881,-184.3429923,0.00021391,2]
[379243095,1755220231891,-170.0,0.00021955,7]
[379243096,1755220231900,-48.6520021,0.00021962,2]
[379243097,1755220231932,-598.0779979,0.00021962,2]
[379243098,1755220231943,-150.0,0.00021962,2]
[379243099,1755220231952,-1000.0,0.00022,4]
[379243100,1755220231961,-210.0,0.00022,2]
[379243101,1755220231971,-150.0,0.00022001,2]
[379243102,1755220231980,-438.47,0.00022054,2]
[379243103,1755220231990,-970.0,0.00022102,2]
[379243104,1755220232000,-1000.0,0.00022153,2]
[379243105,1755220232009,-300.0,0.00022174,2]
[379243106,1755220232020,-32.01902176,0.00022174,2]
[379243107,1755220232031,-1167.98097824,0.00022174,2]
[379243108,1755220232040,-232.01902176,0.00022175,2]
[379243109,1755220232051,-2221.24,0.00022175,2]
[379243110,1755220232121,-1901.26199871,0.00022175,2]
[379243111,1755220232213,-1900.80211902,0.00022175,2]
[379243112,1755220232225,-4352.52686051,0.00022175,2]
[379243113,1755220232235,-210.0,0.00022192,7]
[379243114,1755220232245,-4510.64,0.00022234,2]
[379243115,1755220232254,-150.0,0.00022234,2]
[379243116,1755220232264,-1264.02844379,0.00022257,2]
[379243118,1755220232276,-428.64155621,0.00022257,2]
[379243119,1755220232285,-253.85,0.00022297,2]
[379243121,1755220232294,-1200.0,0.00022307,2]
[379243123,1755220232305,-2545.09,0.00022308,2]
[379243124,1755220232314,-930.69961849,0.00022319,2]
[379243126,1755220232337,-1579.15038151,0.00022319,2]
[379243128,1755220232347,-500.0,0.00022323,2]
[379243130,1755220232356,-151.0,0.00022323,2]
[379243131,1755220232366,-666.0,0.00022336,3]
[379243132,1755220232376,-1066.6280862,0.00022336,2]
[379243153,1755220238012,-405.17512303,0.00022336,2]
[379243156,1755220238035,-611.17215,0.00022336,2]
[379243160,1755220238064,-5615.82464077,0.00022336,2]
[379243162,1755220238074,-500.0,0.00022378,2]
[379243164,1755220238085,-2057.25698123,0.00022411,2]
[379243167,1755220238104,-1456.84301877,0.00022411,2]
[379243169,1755220238113,-500.0,0.00022433,2]
[379243171,1755220238122,-200.0,0.00022472,2]
[379243173,1755220238134,-184.3429923,0.00022644,2]
[379243175,1755220238143,-1940.25857947,0.00022647,2]
[379243177,1755220238152,-840.01,0.00022697,2]
[379243179,1755220238161,-185.57,0.00022701,2]
[379243181,1755220238170,-840.01,0.00022709,2]
[379243183,1755220238180,-1594.0,0.00022709,2]
[379243185,1755220238189,-840.01,0.0002272,2]
[379243187,1755220238198,-840.01,0.00022732,2]
[379243189,1755220238207,-840.01,0.00022744,2]
[379243191,1755220238217,-840.01,0.00022756,2]
[379243193,1755220238226,-1000.0,0.00022767,2]
[379243195,1755220238235,-840.01,0.00022768,2]
[379243197,1755220238244,-840.01,0.0002278,2]
[379243198,1755220238253,-200.0,0.00022791,2]
[379243201,1755220238263,-840.01,0.00022792,2]
[379243202,1755220238272,-840.01,0.00022804,2]
[379243204,1755220238281,-162.7,0.0002281,2]
[379243206,1755220238290,-840.01,0.00022816,2]
[379243208,1755220238299,-840.01,0.00022828,2]
[379243210,1755220238309,-840.01,0.0002284,2]
[379243212,1755220238318,-840.01,0.00022852,2]
[379243215,1755220238328,-5000.0,0.00022858,2]
[379243217,1755220238337,-840.01,0.00022864,2]
[379243219,1755220238347,-151.0,0.00022871,2]
[379243221,1755220238356,-840.01,0.00022876,2]
[379243223,1755220238365,-840.01,0.00022888,2]
[379243225,1755220238375,-840.01,0.000229,2]
[379243226,1755220238384,-251.55,0.00022902,2]
[379243228,1755220238393,-840.01,0.00022912,2]
[379243231,1755220238403,-840.01,0.00022924,2]
[379243233,1755220238412,-1317.03,0.00022966,2]
[379243234,1755220238422,-150.0,0.00022989,2]
[379243236,1755220238431,-210.0,0.00023014,7]
[379243238,1755220238441,-389.81393805,0.00023105,2]
[379243240,1755220238450,-908.0,0.00023137,2]
[379243242,1755220238459,-170.74,0.00023146,2]
[379243244,1755220238468,-150.0,0.00023148,2]
[379243246,1755220238477,-150.0,0.00023148,2]
[379243248,1755220238487,-150.0,0.00023148,2]
[379243250,1755220238496,-158.73376782,0.00023175,2]
[379243252,1755220238505,-568.0,0.00023247,2]
[379243254,1755220238514,-150.0,0.0002329,2]
[379243256,1755220238523,-150.0,0.0002332,2]
[379243258,1755220238532,-4254.0,0.00023332,2]
[379243260,1755220238542,-150.0,0.00023345,2]
[379243262,1755220238551,-2500.0,0.00023399,2]
[379243264,1755220238560,-300.0,0.00023399,2]
[379243266,1755220238570,-2500.0,0.00023399,2]
[379243268,1755220238581,-2500.0,0.00023399,2]
[379243270,1755220238590,-253.85,0.00023412,2]
[379243272,1755220238599,-163.45202941,0.00023429,2]
[379243274,1755220238609,-150.0,0.00023465,2]
[379243276,1755220238618,-157.0,0.000235,4]
[379243278,1755220238627,-157.0,0.000235,4]
[379243280,1755220238637,-157.0,0.000235,4]